Cogmind - Beta 15 @@@ ROGUE MODE // 2025.05.17 @ 14:00:59 Player: Iry-bot Result: Destroyed by Proton Bomb Trap Performance ------------- Evolutions (4) 2000 Regions Visited (4) 800 Robots Destroyed (29) 145 Value Destroyed (857) 857 Prototype IDs (1) 20 Alien Tech Used (0) 0 Bonus (800) 800 TOTAL SCORE: 4622 Bonus ------- Registered with UFD 300 Met Optimus in HQ 500 Cogmind --------- Core Integrity 0/850 Matter 198/300 Energy 99/100 System Corruption 2% Temperature Cool (0) Movement Core (100) Ox1 Location -6/Factory Parts ------- > --- POWER (2) -------- (None) > --- PROPULSION (5) --- (None) > --- UTILITY (6) ------ Weight Redist. System Improved Sensor Array Improved Signal Interpreter Improved Hacking Suite System Shield > --- WEAPON (2) ------- Power Sword > --- INVENTORY (5) ---- Scrap Suit Siege Cannon Replica Peak State ------------ > --- POWER ------------ Light Nuclear Core Micro Nuclear Core > --- PROPULSION ------- Armored Treads Overtuned Treads Overtuned Treads Overtuned Treads Overtuned Treads > --- UTILITY ---------- Scrap Suit Huge Storage Unit Surveybot 17 Chip Makeshift Transmission Jammer Mapping Drone Bay > --- WEAPON ----------- Gatling Laser Overtuned Barrage Gun > --- INVENTORY -------- Light Nuclear Core Armored Treads Scrap Suit Improved Heat Sink Improved Heat Sink Seismic Detector Makeshift Light Armor Plating Makeshift Hacking Suite Drone Bay Pulse Rifle Heavy Particle Cannon Coil Gun Siege Cannon Replica Long-range Missile Launcher CPS Tube Junk Cannon Great Maul Deploy-a-Sentry [Rating: 64] Favorites ----------- Power Light Ion Engine Engine Light Ion Engine Power Core Light Nuclear Core Propulsion Light Treads Treads Light Treads Hover Unit Combat Airjet Utility Huge Storage Unit Device Mapping Drone Bay Storage Huge Storage Unit Processor Surveybot 17 Chip Hackware Improved Hacking Suite Protection Makeshift Light Armor Plating Weapon Junk Cannon Energy Gun Pulse Rifle Energy Cannon Proton Cannon Ballistic Gun Assault Rifle Launcher Long-range Missile Launcher Special Weapon Junk Cannon Impact Weapon Great Maul Slashing Weapon Power Sword Build | -11 -10 -10 -8 -6 ------- Run | Yrd Mat Sub Scr Fac Slots Evolved 8 | . . . . 8 Power 1 | . . . . 1 Propulsion 3 | . . . . 3 Utility 4 | . . . . 4 Weapon . | . . . . . Parts Attached 50 | 6 1 . 17 26 Power 5 | 1 . . . 4 Engine 2 | 1 . . . 1 Core 3 | . . . . 3 Reactor . | . . . . . Propulsion 11 | 2 . . 4 5 Treads 10 | 2 . . 4 4 Leg . | . . . . . Wheel . | . . . . . Hover 1 | . . . . 1 Flight . | . . . . . Utility 20 | 1 1 . 5 13 Device 11 | . . . 2 9 Storage 2 | 1 1 . . . Processor 2 | . . . . 2 Hackware 2 | . . . . 2 Protection 3 | . . . 3 . Artifact . | . . . . . Weapon 14 | 2 . . 8 4 Energy Gun 2 | . . . 2 . Energy Cannon 2 | . . . 1 1 Ballistic Gun 4 | 2 . . 1 1 Ballistic Cannon . | . . . . . Launcher 1 | . . . . 1 Special Weapon 2 | . . . 2 . Impact Weapon 1 | . . . 1 . Slashing Weapon 2 | . . . 1 1 Piercing Weapon . | . . . . . Special Melee Weapon . | . . . . . Unidentified Prototypes 1 | . . . 1 . Parts Lost 22 | . . . . 22 Power 4 | . . . . 4 Propulsion 6 | . . . . 6 Utility 5 | . . . . 5 Weapon 7 | . . . . 7 Highest Loss Streak 21 | . . . . 21 To Critical Strikes 1 | . . . . 1 Average Backups 14 | 2 5 7 16 9 Power 1 | . 1 2 2 . Propulsion 3 | 1 2 2 3 . Utility 3 | . . 1 3 4 Weapon 5 | . 1 2 6 3 Tool/Special . | . . . . . Unused Backups 14 | . . . 9 5 Power 1 | . . . 1 . Propulsion 4 | . . . 4 . Utility 5 | . . . 2 3 Weapon 3 | . . . 2 1 Tool/Special 1 | . . . . 1 Average Slot Usage (%) 81 | . 85 85 85 61 Engine 12 | . 14 14 14 2 Treads 26 | . 28 28 28 17 Device 7 | . . . 6 13 Storage 12 | . 14 14 14 3 Protection 1 | . . . 1 . Ballistic Gun 11 | . 28 28 11 6 Special Weapon 5 | . . . 7 . Peak Build Rating 64 | 6 7 7 30 64 Average Rating 21 | 4 6 7 19 40 On Entrance 9 | . 6 7 7 28 Naked Turns 109 | . . . . 109 Heaviest Build 112 | 11 11 11 101 112 Greatest Support 94 | 40 40 40 40 94 Greatest Overweight (x) 34 | 3 . . 5 34 Average Overweight (x) 1 | 1 . . 1 . Largest Inventory Capacity 25 | 8 25 8 25 25 Average Capacity 21 | 7 8 8 23 16 Most Carried 25 | 4 7 7 25 25 Average Carried 15 | 2 5 7 17 13 Final Capacity 25 | 8 8 8 25 5 Final Carried 25 | 4 7 7 25 5 Class Distribution -------------------- 84% | Mutant 7% | Scavenger-Scrapper 4% | Hacker-Mutant 3% | Scavenger-Mutant Dominant Class ---------------- Mutant | -10/Materials Mutant | -10/Subcaves Mutant | -8/Scraptown Scavenger-Scrapper | -6/Factory Resources | -11 -10 -10 -8 -6 ----------- Run | Yrd Mat Sub Scr Fac Matter Collected 1020 | 194 110 . 230 486 Remotely . | . . . . . Salvage Created 1199 | . 84 . 140 975 Parts 58 | . 4 . 2 52 Haulers Intercepted 2 | . . . . 2 Recyclers Shooed 2 | . 1 . . 1 Parts Field Recycled . | . . . . . Retrieved Matter . | . . . . . Parts Self-Destructed 4 | . . 4 . . Prevented . | . . . . . Kills | -11 -10 -10 -8 -6 ------- Run | Yrd Mat Sub Scr Fac Combat Hostiles Destroyed 15 | . 2 . 2 11 Guns 8 | . 2 . . 6 Cannons 3 | . . . 1 2 AOE 3 | . . . . 3 Classes Destroyed 12 | . 1 . 1 10 Worker 4 | . . . . 4 Builder 4 | . . . . 4 Tunneler 1 | . . . . 1 Hauler 2 | . . . . 2 Recycler 1 | . . . . 1 Watcher 2 | . . . . 2 Swarmer 3 | . . . . 3 Grunt 4 | . 2 . . 2 Hunter 3 | . . . . 3 Programmer 2 | . . . . 2 Heavy 1 | . . . . 1 Scrapper 2 | . . . 2 . Best Kill Streak 15 | . 2 . 1 15 Combat Bots Only 6 | . 2 . 1 6 Max Kills in Single Turn 3 | . 1 . 1 3 Gunslinging . | . . . . . Exploded 2 | . . . . 2 Melee . | . . . . . Uniques/NPCs Destroyed . | . . . . . Combat | -11 -10 -10 -8 -6 -------- Run | Yrd Mat Sub Scr Fac Hostile Shots Fired 309 | . . . 46 263 Missed 68 | . . . 12 56 Hits 241 | . . . 34 207 Projectile 241 | . . . 34 207 Critical Strikes 11 | . . . 3 8 Damage Taken 4532 | . . . 412 4120 Core 878 | . . . 24 854 Absorbed by Shields . | . . . . . Regen/Repaired (Parts) 20 | . . . . 20 Core Remaining (%) 95 | 100 . . 90 . Volleys Fired 81 | . 8 . 11 62 Largest 2 | . 2 . 2 2 Hottest 144 | . 40 . 144 138 Shots Fired 139 | . 16 . 12 111 Gun 108 | . 16 . 2 90 Cannon 19 | . . . 7 12 Launcher 2 | . . . . 2 Special 10 | . . . 3 7 Kinetic 93 | . 16 . . 77 Thermal 27 | . . . 2 25 Explosive 2 | . . . . 2 Electromagnetic 7 | . . . 7 . Impact 10 | . . . 3 7 Robot Hit Streak 11 | . 6 . 4 11 Robot Miss Streak 4 | . 2 . 3 4 Penetration Max 1 | . . . . 1 Secondary Targets 1 | . . . . 1 Max Gunslinging Chain 1 | . . . . 1 Shots Hit Robots 88 | . 10 . 6 72 Core Hits 48 | . 4 . 1 43 Critical Kills 1 | . . . . 1 Critical Parts Destroyed 1 | . . . . 1 Critical Strikes 2 | . . . . 2 Destroy 2 | . . . . 2 Melee Attacks 17 | . . . 6 11 Impact 1 | . . . 1 . Slashing 16 | . . . 5 11 Piercing . | . . . . . Sneak Attacks 2 | . . . . 2 Combat Hostiles . | . . . . . Follow-up Attacks . | . . . . . Damage Inflicted 3026 | . 104 . 249 2673 Guns 1464 | . 100 . 16 1348 Cannons 326 | . . . 76 250 Explosions 610 | . . . . 610 Melee 181 | . . . . 181 Ramming 9 | . 4 . . 5 Kinetic 1198 | . 100 . . 1098 Thermal 516 | . . . 16 500 Explosive 610 | . . . . 610 Electromagnetic 76 | . . . 76 . Impact 436 | . . . 157 279 Slashing 181 | . . . . 181 Piercing . | . . . . . Highest Corruption 2 | . . . . 2 Average Corruption 1 | . . . . 1 Corruption Purged . | . . . . . Corruption Blocked . | . . . . . Effects 10 | . . . . 10 Message Errors 2 | . . . . 2 Matter Fused 2 | . . . . 2 Heat Flow Errors 1 | . . . . 1 Energy Discharges 1 | . . . . 1 Data Loss (minor) 2 | . . . . 2 Data Loss (major) 1 | . . . . 1 Weapon Failures 1 | . . . . 1 Overload Shots . | . . . . . Overflow Damage 175 | . . . 72 103 Projectiles 134 | . . . 72 62 Explosions 41 | . . . . 41 Melee . | . . . . . Knockbacks 3 | . . . 2 1 Impact 3 | . . . 2 1 Kinetic . | . . . . . Secondary . | . . . . . Self-Inflicted Damage 128 | . . . . 128 Shots 2 | . . . . 2 Rammed 3 | . 2 . . 1 Targets Rammed 3 | . 2 . . 1 Kicked . | . . . . . Crushed . | . . . . . Highest Temperature 319 | . . . 167 319 Average Temperature 75 | . . . 55 83 Received Heat Transfer 771 | . . . 255 516 Effects 2 | . . . . 2 Interference 2 | . . . . 2 Siege Activations . | . . . . . Martial Activations . | . . . . . Shielding Activations . | . . . . . Robots Disrupted . | . . . . . Combat Hostiles . | . . . . . Robots Corrupted 1 | . . . 1 . Combat Hostiles 1 | . . . 1 . Parts Fried 2 | . . . 2 . Impact Corruptions 4 | . . . 2 2 Robots Melted . | . . . . . Combat Hostiles . | . . . . . Parts Melted 3 | . . . 1 2 Heat Transferred 955 | . . . 25 930 Parts Sabotaged . | . . . . . Parts Stolen . | . . . . . Parts Stripped . | . . . . . Power Chain Reactions . | . . . . . Alert | -11 -10 -10 -8 -6 ------- Run | Yrd Mat Sub Scr Fac Maximum Alert Level . | . . . . . Low Security (%) 100 | 100 100 . . 100 Level 1 . | . . . . . Level 2 . | . . . . . Level 3 . | . . . . . Level 4 . | . . . . . Level 5 . | . . . . . High Security . | . . . . . Max Security . | . . . . . Peak Influence 84 | . 54 . . 84 Initial . | . . . . . Average 19 | . 15 . . 22 Influence Increases 590 | . 64 . . 526 Destroy 0b10 Robot/C 260 | . 40 . . 220 Destroy 0b10 Robot/NC 70 | . . . . 70 Destroy Leader 78 | . 10 . . 68 Successful Hack 14 | . 14 . . . Disable Machine 15 | . . . . 15 Destroy Structure 18 | . . . . 18 Partial Spotted 15 | . . . . 15 Lose Combat Pursuer 120 | . . . . 120 Influence Decreases 556 | . 64 . . 492 Time Decay 344 | . 64 . . 280 Lost Part 202 | . . . . 202 Lost Ally 10 | . . . . 10 Squads Dispatched 9 | . 1 . . 8 Investigation 1 | . 1 . . . Extermination 2 | . . . . 2 Reinforcement 6 | . . . . 6 Assault . | . . . . . Garrison . | . . . . . Intercept . | . . . . . Searches Triggered . | . . . . . Construction Impeded 1 | . . . . 1 Haulers Reinforced 3 | . . . . 3 Active Scanning Responses . | . . . . . Cargo Convoy Interrupts . | . . . . . Stealth | -11 -10 -10 -8 -6 --------- Run | Yrd Mat Sub Scr Fac Distress Signals 5 | . 1 . . 4 Communications Jammed 21 | . . . . 21 Distress Signals 15 | . . . . 15 Times Spotted 38 | . 4 . 11 23 Peak Tracking Total 6 | . 2 . 5 6 Tactical Retreats 4 | . . . . 4 Traps | -11 -10 -10 -8 -6 ------- Run | Yrd Mat Sub Scr Fac Traps Triggered 3 | . . . . 3 Indirectly . | . . . . . Trap Hack Attempts . | . . . . . Triggered . | . . . . . Disarmed . | . . . . . Reprogrammed . | . . . . . Reused . | . . . . . Traps Extracted . | . . . . . Installed . | . . . . . Triggered . | . . . . . Machines | -11 -10 -10 -8 -6 ---------- Run | Yrd Mat Sub Scr Fac Machines Disabled 4 | . . . 3 1 Max in Single Turn 1 | . . . 1 1 Machines Repaired . | . . . . . Machines Dismantled . | . . . . . Machines Sabotaged . | . . . . . Overloaded Fab Kills . | . . . . . Hacking | -11 -10 -10 -8 -6 --------- Run | Yrd Mat Sub Scr Fac Machines Accessed 9 | . 1 . 5 3 Terminals 3 | . 1 . . 2 Fabricators . | . . . . . Repair Stations . | . . . . . Recycling Units 1 | . . . . 1 Scanalyzers . | . . . . . Garrison Access . | . . . . . Total Hacks 57 | . 2 . 49 6 Successful 52 | . 1 . 49 2 Failed 5 | . 1 . . 4 Catastrophic 1 | . . . . 1 Database Lockouts . | . . . . . Manual 4 | . 2 . . 2 Terminals 5 | . 2 . . 3 Fabricators . | . . . . . Repair Stations . | . . . . . Recycling Units 3 | . . . . 3 Scanalyzers . | . . . . . Garrison Access . | . . . . . Terminal Hacks 50 | . . . 49 1 Record 50 | . . . 49 1 Fabricator Hacks . | . . . . . Repair Station Hacks . | . . . . . Recycling Unit Hacks 1 | . . . . 1 Retrieve Components 1 | . . . . 1 Scanalyzer . | . . . . . Garrison Access Hacks . | . . . . . Unauthorized Hacks 1 | . 1 . . . Terminals 1 | . 1 . . . Botnet 1 | . 1 . . . Fabricators . | . . . . . Repair Stations . | . . . . . Recycling Units . | . . . . . Scanalyzers . | . . . . . Garrison Access . | . . . . . Data Cores Recovered . | . . . . . Used . | . . . . . Hacking Detections 4 | . 1 . . 3 Full Trace Events . | . . . . . Feedback Events . | . . . . . Feedback Blocked . | . . . . . Robot Schematics Acquired . | . . . . . Robots Built . | . . . . . Authchips . | . . . . . Time . | . . . . . Total Robot Build Rating . | . . . . . Part Schematics Acquired . | . . . . . Parts Built . | . . . . . Authchips . | . . . . . Time . | . . . . . Total Part Build Rating . | . . . . . Parts Repaired . | . . . . . Time . | . . . . . Parts Recycled . | . . . . . Recycled Matter . | . . . . . Retrieved Matter . | . . . . . Retrieved Components . | . . . . . Parts Scanalyzed . | . . . . . Part Schematics Acquired . | . . . . . Parts Damaged . | . . . . . Bothacking | -11 -10 -10 -8 -6 ------------ Run | Yrd Mat Sub Scr Fac Used RIF Installer . | . . . . . Robots Hacked . | . . . . . Non-combat . | . . . . . Combat . | . . . . . Robot Hacks Applied . | . . . . . Relay Couplers Released . | . . . . . Fabnet Peak Effective % . | . . . . . Robots Rewired . | . . . . . Allies Hacked . | . . . . . Hacks Repelled . | . . . . . Allies | -11 -10 -10 -8 -6 -------- Run | Yrd Mat Sub Scr Fac Total Allies . | . . . . . Largest Group . | . . . . . Highest-Rated Group . | . . . . . Highest-Rated Ally . | . . . . . Total Orders 6 | . . . 3 3 STAY 1 | . . . . 1 FOLLOW 1 | . . . . 1 RETURN 4 | . . . 3 1 Ally Attacks . | . . . . . Total Damage . | . . . . . Kills . | . . . . . Allies Corrupted . | . . . . . Allies Melted 9 | . . . 9 . Intel | -11 -10 -10 -8 -6 ------- Run | Yrd Mat Sub Scr Fac Active Infowar (turns) 1455 | . . . 802 653 Sensors 151 | . . . . 151 Terrain 7 | . . . . 7 Seismic 40 | . . . . 40 Jamming 495 | . . . . 495 ECM 805 | . . . 802 3 Robot Analysis Total . | . . . . . Derelict Logs Recovered 1 | . . 1 . . Drone Launches 13 | . . . 9 4 Drone Recoveries 12 | . . . 9 3 Exploration | -11 -10 -10 -8 -6 ------------- Run | Yrd Mat Sub Scr Fac Turns Passed 6640 | 70 264 261 5023 1022 Spaces Moved 2736 | 36 128 155 1636 781 Core 640 | 16 . . . 624 Treads 2092 | 20 128 155 1636 153 Legs . | . . . . . Wheels . | . . . . . Hover 4 | . . . . 4 Flight . | . . . . . Fastest Speed 50 | 50 160 160 160 50 Average Speed 215 | 161 160 160 287 86 Slowest Speed 1750 | 200 160 160 320 1750 Overloaded Moves . | . . . . . Propulsion Burnouts . | . . . . . Robots Hopped . | . . . . . Potential Cave-ins 3 | . . . . 3 Cave-ins Triggered . | . . . . . Exploration Rate (%) 30 | 4 25 19 81 23 Regions Visited 4 Branch Regions 2 Pre-discovered Areas 5 | . . . 5 . Known Exits Taken . | . . . . . Unknown Exits Taken 4 | 1 1 1 1 . Scrap Searched 5 | . . . 5 . Spaces Dug 9 | . . . 1 8 Terrain Destroyed 21 | . . . 1 20 Melee 9 | . . . 1 8 Projectile 3 | . . . . 3 AOE 9 | . . . . 9 Terrain Rammed . | . . . . . Walls Destroyed . | . . . . . Machines Disabled . | . . . . . Actions | -11 -10 -10 -8 -6 --------- Run | Yrd Mat Sub Scr Fac Total 3348 | 45 172 168 1950 1013 Wait 372 | . 29 14 219 110 Move 2732 | 35 127 154 1635 781 Hop . | . . . . . Pick Up 36 | 4 2 . 25 5 Fast Attach 28 | 6 2 . 9 11 Attach 23 | . . . 4 19 Detach 13 | . 1 . 8 4 Swap 15 | . . . 10 5 Drop 28 | . 1 . 23 4 Fire 81 | . 8 . 11 62 Melee 17 | . . . 6 11 Ram . | . . . . . Kick . | . . . . . Crush 3 | . 2 . . 1 Escape Stasis . | . . . . . Rewire . | . . . . . Trap . | . . . . . Miscellaneous . | . . . . . Route ------- -11/Scrapyard -10/Materials (discovered 2 exits: [*Mat] / [*Sub]) -10/Subcaves -8/Scraptown (discovered 2 exits: *Fac x2) -6/Factory (discovered 3 exits: Fac x2 / Low) History --------- Turn | Location | Event 29 | -11/Scrapyard | Discovered new exit (range 15) 71 | -11/Scrapyard | Entered Materials 72 | -10/Materials | Met a group of wandering Federalists 203 | -10/Materials | Discovered new exit (range 9) 227 | -10/Materials | Discovered new exit (range 7) 312 | -10/Materials | Build established: Mutant 335 | -10/Materials | Entered Subcaves 335 | -10/Subcaves | Accompanied by 1 ally 336 | -10/Subcaves | Continued accompanying wandering Federalists (3) 336 | -10/Subcaves | Approached by a straggling Scientist 395 | -10/Subcaves | Learned 2 Materials zone layouts 586 | -10/Subcaves | Wandering Federalist uncovered a shortcut to Scraptown 596 | -10/Subcaves | Entered Scraptown 1475 | -8/Scraptown | Discovered new exit (range 3) 1741 | -8/Scraptown | Visited Fellowship of the Rings 1786 | -8/Scraptown | Visited Shadow of the Wyrm 1831 | -8/Scraptown | Visited The Evicted 1893 | -8/Scraptown | Visited CPS Storage 1942 | -8/Scraptown | Visited SPCMW 2089 | -8/Scraptown | Visited Cyclists 2178 | -8/Scraptown | Visited UFD Registry 2178 | -8/Scraptown | Registered with UFD as "Shockcase" 2223 | -8/Scraptown | Visited Awakened 2348 | -8/Scraptown | Entered Cyclist Reading Room 2572 | -8/Scraptown | Visited Junk Cannon Lab 2621 | -8/Scraptown | Found Prototype Special Weapon 2621 | -8/Scraptown | Identified Junk Cannon 2699 | -8/Scraptown | Visited DA-N13 Charitable Foundation 2763 | -8/Scraptown | Visited Junk Repository 2920 | -8/Scraptown | Found DCF Scrap (30 items) 3143 | -8/Scraptown | Visited Cartography Club 3220 | -8/Scraptown | Found Surveybot 17 Chip 3510 | -8/Scraptown | Discovered new exit (range 10) 4003 | -8/Scraptown | Found Scrap Suit 4007 | -8/Scraptown | Found Scrap Suit 4677 | -8/Scraptown | Visited Supply Room 4773 | -8/Scraptown | Met Optimus 4773 | -8/Scraptown | Accepted into 0bPrime 4968 | -8/Scraptown | Visited Curators Association 5007 | -8/Scraptown | Visited Observation Area 5062 | -8/Scraptown | Civil war broke out across Scraptown 5132 | -8/Scraptown | Lost 5 allies 5383 | -8/Scraptown | Found Siege Cannon Replica 5395 | -8/Scraptown | Found Deploy-a-Sentry 5526 | -8/Scraptown | Learned location of Proximity Caves (-5) 5526 | -8/Scraptown | Learned location of Extension (-6) 5526 | -8/Scraptown | Learned location of Archives (-6) 5526 | -8/Scraptown | Learned location of Testing (-3) 5526 | -8/Scraptown | Learned 8 Factory zone layouts 5526 | -8/Scraptown | Learned 8 Research zone layouts 5526 | -8/Scraptown | Learned 12 Lower Caves zone layouts 5526 | -8/Scraptown | Learned 16 Upper Caves zone layouts 5526 | -8/Scraptown | Learned 12 Proximity Caves zone layouts 5526 | -8/Scraptown | Learned 20 Proximity Caves zone layouts 5526 | -8/Scraptown | Learned 24 Proximity Caves zone layouts 5526 | -8/Scraptown | Learned 4 Armory zone layouts 5526 | -8/Scraptown | Learned Factory emergency access door positions 5526 | -8/Scraptown | Learned location of 2 exits from Upper Caves 5526 | -8/Scraptown | Learned location of 1 exit from Proximity Caves 5580 | -8/Scraptown | Lost 5 allies 5619 | -8/Scraptown | Entered Factory 5619 | -6/Factory | Evolved 8 slots: Power x1, Propulsion x3, Utility x4 5620 | -6/Factory | Identified exit to Factory 5621 | -6/Factory | Identified exit to Lower Caves 5621 | -6/Factory | Lost 3 allies 5897 | -6/Factory | Build established: Scavenger-Scrapper 6220 | -6/Factory | Core integrity fell below 50% 6229 | -6/Factory | Released all parts (2) 6233 | -6/Factory | Core integrity fell below 20% 6247 | -6/Factory | Lost 21 parts (4p6n4u7w) 6634 | -6/Factory | Build established: Hacker-Mutant 6641 | -6/Factory | Destroyed by Proton Bomb Trap Last Messages --------------- Programmers report to Factory Zone 7D. 06555_ K-01 Serf cleans the Neutrino Reactor. 06560_ T-07 Excavator is excavating. 06563_ K-01 Serf cleans the Terminal. 06564_ T-07 Excavator is excavating. 06567_ K-01 Serf cleans the Nuclear Reactor. 06568_ T-07 Excavator is excavating. 06575_ Acquired ECM Suite. 06639_ Triggered Proton Bomb Trap. 06639_ A bubble of electromagnetic force engulfs the area. 06639_ ECM Suite destroyed. 06641_ Triggered Proton Bomb Trap. 06641_ A bubble of electromagnetic force engulfs the area. 06641_ Proton Bomb Trap short circuited. 06641_ Door malfunctions. 06641_ A bubble of electromagnetic force engulfs the area. [Achievement: I Think I Know What's Going On] Map ----- +----------------------------------------------------+ | # #???????????????????????????????????? | | ###### """ ####????????????????????????????????? | | """ #????????????????????????????????? | | """ #????????????????????????????????? | | #????????????????????????????????? | | """ #????????????????????????????????? | | ^ """ #????????????????????????????????? | | #### """ #????????????????????????????????? | | ???# #????????????????????????????????? | | ???# """ #????????????????????????????????? | | ???# """ #????????????????????????????????? | | ???# """ #????????????????????????????????? | | ?# # #????????????????????????????????? | | ?# #????????????????????????????????? | | ?# ### #### #????????????????????????????????? | | ?##??# #??? ###+####???####??????????????????? | | ?????# #???? #??? ???????????????????? | | ?????# #????? #"" """" ###??????????? | | ?????# #????? #" """" ## ??????????? | | ?????# #?????? #"F """" ## ??????????? | | ?????# #?????? #"" """" ## ??????????? | | ????##+########### # ## ??????????? | | ????# ! # ###/#######+### ??????????? | | ????# # + ??????????? | | #???# " " " " " + # ??????????? | | ##### " " " " " # @ + ??????????? | | + " " " " " # # ??????????? | | ##### " " " " " # # ??????????? | | #???# " " " " " ################+#### ??????????? | | ????# " " " " " #????????????# ## ??????????? | | ????# " " " " " #????????????# k###??????????? | | ????# " " " " " #????????????# #????????????? | | ??#?# " " " " " #????????????# ###??????????? | | ##??# u #????????????# + ??????????? | | ###?###########"##????????????# ###??????????? | | ??????????????##??????????????# #????????????? | | ?#????????????????????????????# #????????????? | | #?#???????????????????????????# #????????????? | | ???#??????????????????????????# #????????????? | | #?????????????????????????????# #????????????? | | ??#???????????????????????????# #????????????? | | #?????????????????????????????#######????????????? | | ?????????????????????????????????????????????????? | | #????????????????????????????????????????????????? | | ?????????????????????????????????????????????????? | | ?????????????????????????????????????????????????? | | ?????????????????????????????????????????????????? | | ?????????????????????????????????????????????????? | | ?#???????????????????????????????????????????????? | | ?????????????????????????????????????????????????? | +----------------------------------------------------+ Best States ------------- Heat Dissipation 51 Energy Generation 24 Energy Capacity 210 Matter Stores 300 Matter Capacity 300 Sight Range 16 Robot Scan Range 15 Terrain Scan Range 16 Terrain Scan Density 1210 ECM Strength 2 Jamming Range 14 Additional Mass Support 6 Armor Coverage 150 Evasion (%) 50 Recoil Reduction 5 Offensive Hacking 12 Defensive Hacking 10 Item Schematics ----------------- None Robot Schematics ------------------ None Fabricated ------------ Nothing Repaired ---------- Nothing Alien Tech Used ----------------- None Achievements -------------- I Think I Know What's Going On Challenges ------------ None Game ------ Seed EtherialArmorBooster Manual? 0 Play Time 00:58:58 Cumulative 60.5 hours Start 2025.05.17 @ 12:30:52 End 2025.05.17 @ 14:00:59 Sessions 1 Manual Loads 0 Difficulty Rogue Special Mode None Game No. 57 Rogue 57 Adventurer 0 Explorer 0 Win Type - Total 0 Types 0/0/0/0/0/0/0/0/0/0 Lore% 50 Gallery% 43 Achievement% 38 Wizard Run 0 Options --------- Layout 1 ASCII 0 Keyboard 0 Movement Mouse Keybinds 0 Fullscreen 1 Font 16/SmallcapsGlow Map View 55x38 Zoom Use 0% Tactical HUD 1 Map Filters NONE Filters NONE Steam 1 RUN: 86a506be-0fdb-4475-a982-5295bf9106d7